bitfinex/quotes_BTCUSD_20220306
["timestamp","ask_amount","ask_price","bid_price","bid_amount"]
[1646604002257,0.00010859,39054.0,39052.0,0.00705467]
[1646604002457,0.384272,39054.0,39052.0,0.00705467]
[1646604002663,0.0001086,39054.0,39050.0,0.064052]
[1646604003107,0.0001086,39054.0,39051.0,0.064051]
[1646604003305,0.0001086,39054.0,39051.0,0.48955865]
[1646604003702,0.002,39058.0,39052.0,0.00705467]
[1646604003903,0.002,39058.0,39054.0,0.19988517]
[1646604004103,0.25,39061.0,39055.0,0.3103698]
[1646604004303,0.25,39064.0,39055.0,0.3744098]
[1646604004502,0.25,39064.0,39055.0,0.43844426]
[1646604004702,0.25,39064.0,39057.0,0.02501]
[1646604005410,0.01333733,39066.0,39058.0,0.12238867]
[1646604005607,0.01333733,39066.0,39060.0,0.06402357]
[1646604005805,0.01333733,39066.0,39061.0,0.36378435]
[1646604006205,0.01333733,39066.0,39062.0,0.16643202]
[1646604006506,0.00010878,39065.0,39063.0,0.42803879]
[1646604006756,0.00010878,39065.0,39064.0,0.00705467]
[1646604007154,0.01333733,39066.0,39064.0,0.00705467]
[1646604007357,0.01333733,39066.0,39064.0,0.07108167]
[1646604007660,0.15,39065.0,39057.0,0.07631]
[1646604007860,0.384272,39059.0,39057.0,0.02501]
[1646604008257,0.384272,39059.0,39058.0,0.00705467]
[1646604008456,0.78887118,39059.0,39058.0,0.00705467]
[1646604008655,0.85293218,39059.0,39058.0,0.00705467]
[1646604008855,1.04650766,39059.0,39058.0,0.00705467]
[1646604009255,1.27184004,39059.0,39058.0,0.00705467]
[1646604009661,1.27184004,39059.0,39041.0,0.11282201]
[1646604009662,1.12956456,39059.0,39044.0,0.11846337]
[1646604009859,0.06407318,39049.0,39044.0,0.11846337]
[1646604010059,0.19221935,39051.0,39044.0,0.11846337]
[1646604010060,0.25,39045.0,39044.0,0.11846337]
[1646604010257,0.684272,39045.0,39044.0,0.11846337]
[1646604010707,0.84906234,39045.0,39044.0,0.11846337]
[1646604012103,0.91314434,39045.0,39044.0,0.11846337]
[1646604012704,1.02430434,39045.0,39044.0,0.11846337]
[1646604013503,0.62887234,39045.0,39044.0,0.11846337]
[1646604013703,1.01314434,39045.0,39044.0,0.11846337]
[1646604013908,0.84906234,39045.0,39044.0,0.11846337]
[1646604014355,0.99906234,39045.0,39044.0,0.11846337]
[1646604014552,1.22439472,39045.0,39044.0,0.11846337]
[1646604014953,1.23555472,39045.0,39044.0,0.11846337]
[1646604015956,1.32439472,39045.0,39044.0,0.11846337]
[1646604018106,1.32439472,39045.0,39044.0,0.11346337]
[1646604023655,0.57533238,39045.0,39044.0,0.11346337]
[1646604023853,0.47533238,39045.0,39044.0,0.11346337]
[1646604024952,0.52533238,39045.0,39044.0,0.11346337]
[1646604026710,0.27533238,39045.0,39044.0,0.11346337]
[1646604027016,0.25,39053.0,39045.0,0.33460292]
[1646604027314,0.00020566,39054.0,39049.0,0.17430254]
[1646604027711,0.384272,39056.0,39049.0,0.01279216]
[1646604027911,0.25,39053.0,39049.0,0.01279216]
[1646604028114,0.634272,39050.0,39049.0,0.01279216]
[1646604028313,0.25,39050.0,39045.0,0.33460292]
[1646604028918,0.3,39050.0,39045.0,0.33460292]
[1646604029556,0.29972819,39050.0,39045.0,0.33460292]
[1646604034905,0.45024454,39050.0,39045.0,0.33460292]
[1646604035506,0.25,39048.0,39045.0,0.33460292]
[1646604035805,0.3,39048.0,39045.0,0.33460292]
[1646604036409,0.05,39048.0,39045.0,0.33460292]
[1646604036607,0.25,39050.0,39045.0,0.33460292]
[1646604036866,0.00020558,39054.0,39046.0,0.3]
[1646604037074,0.00020558,39054.0,39053.0,0.20622041]
[1646604037567,0.25,39061.0,39053.0,0.20622041]
[1646604037768,0.0001082,39054.0,39053.0,0.20622041]
[1646604038567,0.20086859,39062.0,39053.0,0.21779252]
[1646604038770,0.0001082,39055.0,39054.0,0.3]
[1646604038970,0.0001082,39055.0,39053.0,0.21779252]
[1646604039468,0.0001082,39055.0,39053.0,0.01157211]
[1646604039667,0.25,39061.0,39053.0,0.01157211]
[1646604040167,0.0001082,39056.0,39053.0,0.01157211]
[1646604040607,0.33396378,39055.0,39053.0,0.01157211]
[1646604040809,0.384272,39054.0,39053.0,0.01157211]
[1646604041108,0.38396378,39055.0,39053.0,0.01157211]
[1646604041313,0.87241676,39054.0,39047.0,0.01206342]
[1646604041518,0.68648605,39054.0,39047.0,0.01206342]
[1646604041709,0.1,39051.0,39047.0,0.01206342]
[1646604042010,0.1,39051.0,39047.0,0.01006342]
[1646604042011,0.55129703,39048.0,39047.0,0.01006342]
[1646604042208,0.60129703,39048.0,39047.0,0.01006342]
[1646604043410,0.434272,39048.0,39047.0,0.01006342]
[1646604044468,0.59257949,39048.0,39047.0,0.01006342]
[1646604044664,0.434272,39048.0,39047.0,0.01006342]
[1646604045167,0.05,39048.0,39047.0,0.01006342]
[1646604045366,0.05,39049.0,39047.0,0.01006342]
[1646604045568,0.00522054,39054.0,39047.0,0.01006342]
[1646604045766,0.005,39054.0,39049.0,0.064046]
[1646604046169,0.00021265,39054.0,39050.0,0.064044]
[1646604046573,0.00021265,39054.0,39050.0,0.364044]
[1646604046766,0.00021265,39054.0,39050.0,0.464044]
[1646604046966,0.14079733,39066.0,39051.0,0.064041]
[1646604046967,0.02449733,39066.0,39051.0,0.064041]
[1646604047168,0.01333733,39066.0,39055.0,0.06403052]
[1646604047469,0.19625872,39065.0,39058.0,0.00956361]
[1646604047666,0.19625872,39065.0,39058.0,0.30956361]
[1646604047869,0.19625872,39065.0,39058.0,0.00956361]
[1646604048332,0.01333733,39066.0,39059.0,0.192086]
[1646604048536,0.00010822,39063.0,39060.0,0.3]
[1646604048732,0.00010822,39063.0,39060.0,0.528045]
[1646604049330,0.01333733,39066.0,39061.0,0.21108019]
[1646604049531,0.01333733,39066.0,39062.0,0.064023]
[1646604049732,0.01333733,39066.0,39062.0,0.01195804]
[1646604049733,0.384272,39065.0,39062.0,0.01195804]
[1646604049937,0.01333733,39066.0,39057.0,0.003]
[1646604049938,0.25,39060.0,39057.0,0.003]
[1646604050134,0.25,39060.0,39048.0,0.01014055]
[1646604050135,0.384272,39059.0,39048.0,0.01014055]
[1646604050331,0.1986823,39058.0,39048.0,0.01014055]
[1646604050534,0.25,39056.0,39048.0,0.01014055]
[1646604050731,0.1986823,39058.0,39051.0,0.19710143]
[1646604050932,0.00010848,39055.0,39051.0,0.19710143]
[1646604051764,0.24327811,39059.0,39051.0,0.19710143]
[1646604051957,0.25,39058.0,39051.0,0.19710143]
[1646604052158,0.00010848,39055.0,39051.0,0.19710143]
[1646604052359,0.00010848,39055.0,39048.0,0.01014055]
[1646604052761,0.35010848,39055.0,39048.0,0.01014055]
[1646604052961,0.18257267,39051.0,39048.0,0.01014055]
[1646604053160,0.23257267,39051.0,39048.0,0.01014055]
[1646604053361,0.23257267,39051.0,39047.0,0.002]
[1646604053962,0.59663818,39051.0,39047.0,0.002]
[1646604054267,0.59384066,39051.0,39045.0,0.33460292]
[1646604054860,0.65790666,39051.0,39045.0,0.33460292]
[1646604055061,0.35790666,39051.0,39045.0,0.33460292]
[1646604055513,0.064068,39050.0,39045.0,0.33460292]
[1646604055909,0.25,39049.0,39045.0,0.33460292]
[1646604056310,0.05,39049.0,39047.0,0.16786846]
[1646604056709,0.05,39051.0,39047.0,0.16786846]
[1646604057710,0.25,39052.0,39051.0,0.1]
[1646604059261,0.3,39052.0,39051.0,0.1]
[1646604059662,0.48851468,39052.0,39051.0,0.1]
[1646604059864,0.3,39052.0,39051.0,0.1]
[1646604060664,0.24683029,39053.0,39051.0,0.1]
[1646604060868,0.24683029,39053.0,39052.0,0.3]
[1646604061264,0.24683029,39053.0,39052.0,0.39785668]
[1646604064113,0.24683029,39053.0,39052.0,0.1]
[1646604064312,0.24683029,39053.0,39051.0,0.27750321]
[1646604066212,0.24683029,39053.0,39052.0,0.3]
[1646604066413,0.24183029,39053.0,39052.0,0.3]
[1646604066612,0.24183029,39053.0,39052.0,0.4]
[1646604067063,0.24183029,39053.0,39052.0,0.55]
[1646604067064,0.09183029,39053.0,39052.0,0.55]
[1646604069266,0.00020586,39054.0,39053.0,0.24116805]
[1646604069467,0.00020586,39054.0,39053.0,0.54116805]
[1646604069669,0.00020586,39054.0,39053.0,0.64116805]
[1646604069873,0.01333733,39066.0,39056.0,0.064031]
[1646604070168,0.01333733,39066.0,39053.0,0.64116805]
[1646604070169,0.00082324,39064.0,39061.0,0.18447624]
[1646604071013,0.01333733,39066.0,39061.0,0.18447624]
[1646604071212,0.00020583,39064.0,39061.0,0.18447624]
[1646604072213,0.00020583,39064.0,39059.0,0.164031]
[1646604072214,0.01333733,39066.0,39059.0,0.1]
[1646604072418,0.00020693,39064.0,39059.0,0.1]
[1646604072913,0.15849216,39063.0,39056.0,0.1]
[1646604073113,0.20849216,39063.0,39056.0,0.1]
[1646604073314,0.05,39063.0,39057.0,0.20946679]
[1646604073513,0.25340121,39065.0,39057.0,0.20946679]
[1646604073715,0.00020694,39061.0,39057.0,0.20946679]
[1646604075257,0.00020694,39061.0,39057.0,0.27349879]
[1646604075658,0.00020694,39061.0,39057.0,0.50946679]
[1646604075857,0.25340121,39065.0,39057.0,0.20946679]
[1646604076058,0.00010822,39061.0,39055.0,0.01035888]
[1646604076263,0.00010822,39061.0,39051.0,0.1]
[1646604076264,0.384272,39060.0,39051.0,0.1]
[1646604076461,0.19690979,39053.0,39051.0,0.1]
[1646604076762,0.384272,39052.0,39051.0,0.1]
[1646604077163,0.54815332,39052.0,39051.0,0.1]
[1646604078015,0.54815332,39052.0,39047.0,0.002]
[1646604078016,1.1,39051.0,39047.0,0.002]
[1646604078216,0.799656,39050.0,39047.0,0.002]
[1646604078418,0.634272,39046.0,39045.0,0.33460292]
[1646604078619,0.634272,39046.0,39032.0,0.01310094]
[1646604078620,1.0846,39045.0,39032.0,0.01310094]
[1646604078818,1.0846,39045.0,39026.0,0.01142614]
[1646604078819,0.25,39037.0,39026.0,0.01142614]
[1646604079020,0.20750346,39030.0,39026.0,0.01142614]
[1646604079414,0.25750346,39030.0,39026.0,0.01142614]
[1646604079615,0.25750346,39030.0,39026.0,0.01164867]
[1646604080518,0.05,39030.0,39026.0,0.01164867]
[1646604080718,0.05,39036.0,39030.0,0.11368539]
[1646604080922,0.05,39039.0,39030.0,0.12651215]
[1646604081216,0.31116,39044.0,39030.0,0.12651215]
[1646604081217,0.25,39041.0,39030.0,0.12651215]
[1646604081416,0.17821839,39037.0,39032.0,0.064075]
[1646604081615,0.22821839,39037.0,39032.0,0.12815]
[1646604082066,0.22821839,39037.0,39033.0,0.00022251]
[1646604082873,0.17919805,39034.0,39033.0,0.00022251]
[1646604083068,0.17919805,39034.0,39031.0,0.01164605]
[1646604083268,0.05,39033.0,39031.0,0.01164605]
[1646604083470,0.05,39033.0,39030.0,0.11368539]
[1646604083471,0.384272,39032.0,39030.0,0.11368539]
[1646604083670,0.25,39031.0,39030.0,0.11368539]
[1646604083873,0.384272,39030.0,39023.0,0.001]
[1646604084074,0.15,39025.0,39023.0,0.001]
[1646604084270,0.684272,39024.0,39023.0,0.001]
[1646604084468,0.884272,39024.0,39023.0,0.001]
[1646604084671,0.784272,39024.0,39023.0,0.001]
[1646604085624,0.3,39024.0,39023.0,0.001]
[1646604085823,0.05,39025.0,39023.0,0.001]
[1646604086125,0.05,39026.0,39023.0,0.01464953]
[1646604086322,0.25,39029.0,39023.0,0.01464953]
[1646604086825,0.21593299,39026.0,39023.0,0.01464953]
[1646604087222,0.26593299,39026.0,39023.0,0.001]
[1646604087824,0.3,39028.0,39027.0,0.10815761]
[1646604088028,0.25,39029.0,39027.0,0.10815761]
[1646604089026,0.02501533,39028.0,39027.0,0.10815761]
[1646604090861,0.02501533,39028.0,39027.0,0.10315761]
[1646604093814,0.02501533,39028.0,39027.0,0.3168273]
[1646604097364,0.02501533,39028.0,39027.0,0.6168273]
[1646604100372,0.02501533,39028.0,39027.0,0.7168273]
[1646604100622,0.02501533,39028.0,39027.0,0.7681273]
[1646604100830,0.06,39039.0,39034.0,0.064057]
[1646604101127,0.06,39039.0,39035.0,0.55319349]
[1646604101318,0.06,39039.0,39036.0,0.1]
[1646604101520,0.06,39039.0,39037.0,0.3]
[1646604102218,0.06,39039.0,39036.0,0.30791961]
[1646604102419,0.06,39039.0,39036.0,0.37198461]
[1646604102620,0.06,39039.0,39036.0,0.43625345]
[1646604102818,0.06,39039.0,39037.0,0.3]
[1646604103220,0.06,39039.0,39037.0,0.42812593]
[1646604103420,0.06,39039.0,39038.0,0.3]
[1646604103627,0.06,39039.0,39038.0,0.4]
[1646604103921,0.06,39039.0,39038.0,0.4513]
[1646604108118,0.06,39039.0,39038.0,0.6013]
[1646604108320,0.06,39039.0,39038.0,0.6141]
[1646604109321,0.06,39039.0,39038.0,0.6013]
[1646604109921,0.06,39039.0,39038.0,0.1513]
[1646604110321,0.06,39039.0,39038.0,0.0513]
[1646604112965,0.06,39039.0,39037.0,0.00019303]
[1646604113167,0.06,39039.0,39035.0,0.27405089]
[1646604113366,0.06,39039.0,39037.0,0.00019303]
[1646604114372,0.06,39039.0,39036.0,0.128135]
[1646604114569,0.06,39039.0,39036.0,0.12832799]
[1646604114769,0.055,39039.0,39036.0,0.12832799]
[1646604115372,0.055,39039.0,39037.0,0.064064]
[1646604115620,0.055,39039.0,39037.0,0.12812633]
[1646604116816,0.055,39039.0,39036.0,0.528135]
[1646604117016,0.055,39039.0,39036.0,0.23432793]
[1646604117617,0.055,39039.0,39036.0,0.29839177]
[1646604117821,0.17750131,39048.0,39036.0,0.29839177]
[1646604117822,0.17750131,39048.0,39046.0,0.45504651]
[1646604118020,0.665632,39057.0,39046.0,0.45504651]
[1646604118021,0.00641141,39047.0,39046.0,0.45504651]
[1646604118221,0.00641124,39047.0,39046.0,0.45504651]
[1646604118720,0.25,39052.0,39046.0,0.45504651]
[1646604118721,0.18327274,39050.0,39046.0,0.45504651]
[1646604118922,0.00641108,39047.0,39046.0,0.45504651]
[1646604119123,0.00641091,39047.0,39046.0,0.45504651]
[1646604119568,0.00641075,39047.0,39046.0,0.45504651]
[1646604120164,0.00641059,39047.0,39046.0,0.45504651]
[1646604123213,0.21439258,39049.0,39046.0,0.45504651]
[1646604123417,0.00641026,39047.0,39046.0,0.45504651]
[1646604125016,0.001,39048.0,39046.0,0.45504651]
[1646604127072,0.26439258,39049.0,39046.0,0.45504651]
[1646604131619,0.05,39049.0,39046.0,0.46532819]
[1646604131819,0.25761278,39051.0,39046.0,0.46532819]
[1646604132221,0.25761278,39051.0,39046.0,0.45504651]
[1646604132418,0.25761278,39051.0,39046.0,0.46658352]
[1646604132619,0.21652564,39049.0,39046.0,0.46658352]
[1646604132821,0.05,39049.0,39046.0,0.46658352]
[1646604133220,0.20968515,39054.0,39046.0,0.46658352]
[1646604133620,0.26049259,39055.0,39046.0,0.46658352]
[1646604133821,0.16762902,39049.0,39046.0,0.46658352]
[1646604134122,0.05,39049.0,39046.0,0.46658352]
[1646604134372,0.384272,39048.0,39046.0,0.45504651]
[1646604134574,0.448348,39048.0,39041.0,0.00019339]
[1646604134776,0.384272,39044.0,39041.0,0.00019339]
[1646604134971,0.25,39042.0,39034.0,0.2374]
[1646604135171,0.05,39042.0,39041.0,0.00019337]
[1646604135372,0.51743229,39042.0,39041.0,0.00019337]
[1646604135577,1.02692488,39042.0,39041.0,0.00019337]
[1646604135773,0.88151629,39042.0,39041.0,0.00019337]
[1646604135976,1.05840713,39042.0,39041.0,0.00019337]
[1646604136173,1.05840713,39042.0,39033.0,0.03082873]
[1646604136372,0.314087,39040.0,39033.0,0.03082873]
[1646604136575,0.05,39039.0,39033.0,0.03082873]
[1646604136975,0.05,39041.0,39033.0,0.03082873]
[1646604137174,0.22689084,39042.0,39033.0,0.03082873]
[1646604137573,0.22689084,39042.0,39035.0,0.00019325]
[1646604137774,0.11818148,39041.0,39038.0,0.22602676]
[1646604138016,0.22689084,39042.0,39038.0,0.22602676]
[1646604138215,0.05,39042.0,39038.0,0.22602676]
[1646604138415,0.55972556,39044.0,39038.0,0.22602676]
[1646604138617,0.20972556,39042.0,39038.0,0.22622]
[1646604138816,0.05,39042.0,39038.0,0.22622]
[1646604139019,0.25972556,39043.0,39038.0,0.22622]
[1646604139219,1.01769593,39045.0,39038.0,0.22622]
[1646604139220,0.33992008,39045.0,39038.0,0.22622]
[1646604139619,0.33992008,39045.0,39038.0,0.22602676]
[1646604139817,0.33992008,39045.0,39040.0,0.00019324]
[1646604140218,0.33992008,39045.0,39044.0,0.18165925]
[1646604140517,0.33992008,39045.0,39044.0,0.19493989]
[1646604140518,0.38792008,39045.0,39044.0,0.19493989]
[1646604142365,0.38792008,39045.0,39044.0,0.18993989]
[1646604143367,0.38792008,39045.0,39044.0,0.00828064]
[1646604143569,0.38792008,39045.0,39041.0,9.971e-05]
[1646604144467,0.38792008,39045.0,39043.0,0.18173645]
[1646604144669,0.59764564,39045.0,39043.0,0.18173645]
[1646604145074,0.38292008,39045.0,39043.0,0.18173645]
[1646604145269,0.59264564,39045.0,39043.0,0.18173645]
[1646604145518,0.59264564,39045.0,39043.0,0.01204748]
[1646604146720,0.75854392,39045.0,39043.0,0.01204748]
[1646604147121,0.59264564,39045.0,39043.0,0.01204748]
[1646604147920,0.59264564,39045.0,39040.0,0.02868378]
[1646604148123,0.59264564,39045.0,39040.0,0.03849853]
[1646604149370,0.38292008,39045.0,39040.0,0.03849853]
[1646604150971,0.38292008,39045.0,39041.0,0.064059]
[1646604151172,0.38292008,39045.0,39041.0,0.147519]
[1646604151372,0.38292008,39045.0,39041.0,0.35685493]
[1646604151572,0.38292008,39045.0,39042.0,0.20933593]
[1646604152074,0.38292008,39045.0,39042.0,0.30933593]
[1646604152272,0.33792008,39045.0,39042.0,0.30933593]
[1646604152672,0.33792008,39045.0,39043.0,0.064053]
[1646604152876,0.33792008,39045.0,39044.0,0.064052]
[1646604153143,0.33792008,39045.0,39044.0,0.07509208]
[1646604153744,0.38792008,39045.0,39044.0,0.07509208]
[1646604154651,0.38792008,39045.0,39044.0,0.53815918]
[1646604154652,0.33792008,39045.0,39044.0,0.53815918]
[1646604154845,0.0001088,39051.0,39047.0,0.01485208]
[1646604155046,0.0001088,39051.0,39050.0,0.22132087]
[1646604155245,0.20972556,39058.0,39050.0,0.27262087]
[1646604155450,0.20972556,39058.0,39050.0,0.47801629]
[1646604155646,0.38881407,39060.0,39052.0,0.06403907]
[1646604155846,0.17908851,39060.0,39052.0,0.06403907]
[1646604156246,0.00043513,39060.0,39052.0,0.06403907]
[1646604156546,0.47246818,39061.0,39052.0,0.12807907]
[1646604156771,0.0001087,39058.0,39052.0,0.06403907]
[1646604156970,0.0001087,39058.0,39052.0,0.12807907]
[1646604157169,0.0001087,39058.0,39053.0,0.128071]
[1646604157372,0.0001087,39058.0,39052.0,0.12807907]
[1646604157570,0.0001087,39058.0,39054.0,0.06404]
[1646604157771,0.47246818,39061.0,39055.0,0.06403574]
[1646604157974,0.0001087,39057.0,39054.0,0.06404]
[1646604158169,0.0001087,39057.0,39055.0,0.064035]
[1646604158869,0.26274262,39061.0,39055.0,0.064035]
[1646604159271,0.00022315,39058.0,39055.0,0.064035]
[1646604160172,0.26274262,39061.0,39055.0,0.064035]
[1646604160373,0.00022315,39058.0,39055.0,0.064035]
[1646604160935,0.00022315,39058.0,39053.0,0.1]
[1646604161129,0.00022315,39058.0,39052.0,0.292115]
[1646604161331,0.26274262,39061.0,39052.0,0.292115]
[1646604161532,0.26274262,39061.0,39054.0,0.12807954]
[1646604162032,0.26274262,39061.0,39055.0,0.06404]
[1646604163032,0.42801204,39061.0,39055.0,0.06404]
[1646604163433,0.25935427,39061.0,39055.0,0.06404]
[1646604163833,0.04661165,39061.0,39055.0,0.06404]
[1646604164034,0.00022334,39060.0,39055.0,0.15604]
[1646604164270,0.00022334,39060.0,39055.0,0.220077]
[1646604164471,0.00022334,39060.0,39055.0,0.320077]
[1646604164672,0.00022334,39060.0,39055.0,0.220077]
[1646604164872,0.19577115,39062.0,39056.0,0.1]
[1646604165172,0.00640804,39058.0,39056.0,0.1]
[1646604165374,0.00640804,39057.0,39056.0,0.1]
[1646604165573,0.00640787,39057.0,39056.0,0.1]
[1646604166173,0.00640787,39057.0,39055.0,0.128077]
[1646604166174,0.00640771,39057.0,39055.0,0.128077]
[1646604166373,0.00022334,39058.0,39055.0,0.128077]
[1646604167386,0.24577115,39062.0,39055.0,0.128077]
[1646604167574,0.00021448,39058.0,39055.0,0.128077]
[1646604168628,0.20703218,39063.0,39055.0,0.128077]
[1646604168826,0.00021448,39058.0,39055.0,0.428077]
[1646604169126,0.00021448,39058.0,39055.0,0.11092893]
[1646604169525,0.00021448,39058.0,39055.0,0.21092893]
[1646604169727,0.05,39063.0,39055.0,0.21092893]
[1646604170030,0.0011,39064.0,39059.0,0.064027]
[1646604170031,0.00195779,39064.0,39059.0,0.064027]
[1646604170229,0.00195779,39064.0,39060.0,0.3513]
[1646604170630,0.00195779,39064.0,39060.0,0.0513]
[1646604170828,0.20741889,39064.0,39060.0,0.0513]
[1646604171031,0.2065611,39064.0,39060.0,0.0513]
[1646604171236,0.2565611,39064.0,39060.0,0.0513]
[1646604171426,0.25676879,39064.0,39060.0,0.0513]
[1646604171626,0.05130769,39064.0,39060.0,0.0513]
[1646604171875,0.05130769,39064.0,39060.0,0.17935827]
[1646604172073,0.0011,39064.0,39060.0,0.17935827]
[1646604172476,0.00130769,39064.0,39060.0,0.17935827]
[1646604172876,0.00130769,39064.0,39061.0,0.064029]
[1646604173275,0.0011,39064.0,39061.0,0.064029]
[1646604173476,0.0011,39064.0,39060.0,0.1513]
[1646604173680,0.00130769,39064.0,39060.0,0.1]
[1646604174278,0.00130769,39064.0,39059.0,0.1]
[1646604174481,0.0011,39064.0,39059.0,0.164031]
[1646604174679,0.0011,39064.0,39059.0,0.064031]
[1646604174881,0.00130798,39064.0,39059.0,0.164031]
[1646604175278,0.00130798,39064.0,39060.0,0.064031]
[1646604175516,0.00130798,39064.0,39059.0,0.164031]
[1646604175718,0.0011,39064.0,39059.0,0.0996]
[1646604175918,0.00130081,39064.0,39059.0,0.0996]
[1646604176322,0.00130081,39064.0,39058.0,0.3]
[1646604176923,0.0011,39064.0,39058.0,0.3]
[1646604177322,0.0011,39064.0,39058.0,0.4]
[1646604177323,0.00020082,39063.0,39058.0,0.4]
[1646604177722,0.00020082,39063.0,39058.0,0.1]
[1646604177923,0.00020082,39063.0,39056.0,0.25068445]
[1646604178124,0.0011,39064.0,39056.0,0.25068445]
[1646604178424,0.00020133,39062.0,39056.0,0.25068445]
[1646604178623,0.00020133,39062.0,39057.0,0.064035]
[1646604179266,0.0011,39064.0,39057.0,0.292101]
[1646604179471,0.0011,39064.0,39059.0,0.064031]
[1646604179669,0.0002085,39061.0,39059.0,0.064031]
[1646604180469,0.0011,39064.0,39059.0,0.064031]
[1646604180671,0.0011,39064.0,39059.0,0.128059]
[1646604180869,0.0002085,39062.0,39059.0,0.128059]
[1646604181373,0.0002085,39062.0,39059.0,0.064028]
[1646604181878,0.0011,39064.0,39059.0,0.064028]
[1646604182072,0.00020793,39062.0,39058.0,0.403]
[1646604182472,0.00020793,39062.0,39058.0,0.4]
[1646604182872,0.0011,39064.0,39058.0,0.4]
[1646604183144,0.00020793,39062.0,39058.0,0.4]
[1646604183344,0.00020793,39062.0,39058.0,0.1]
[1646604183745,0.00020793,39062.0,39057.0,0.1]
[1646604183950,0.00020793,39062.0,39056.0,0.1]
[1646604184147,0.0011,39064.0,39057.0,0.3]
[1646604184345,0.0011,39064.0,39054.0,0.4]
[1646604184346,0.00020794,39061.0,39054.0,0.4]
[1646604184745,0.00020794,39061.0,39055.0,0.064032]
[1646604184945,0.00020794,39061.0,39056.0,0.3]
[1646604185446,0.0011,39064.0,39056.0,0.4]
[1646604185649,0.00020798,39060.0,39056.0,0.4]
[1646604186648,0.0011,39064.0,39056.0,0.4]
[1646604186875,0.00020798,39060.0,39056.0,0.4]
[1646604187675,0.0011,39064.0,39056.0,0.4]
[1646604187875,0.00020798,39060.0,39056.0,0.4]
[1646604188980,0.0011,39064.0,39058.0,0.064028]
[1646604189176,0.00020798,39060.0,39058.0,0.364028]
[1646604189478,0.00020798,39060.0,39058.0,0.064028]
[1646604190078,0.0011,39064.0,39058.0,0.064028]
[1646604190524,0.00020797,39061.0,39058.0,0.064028]
[1646604191327,0.0011,39064.0,39058.0,0.064028]
[1646604191533,0.0011,39064.0,39058.0,0.135758]
[1646604191727,0.00010907,39061.0,39058.0,0.135758]
[1646604192625,0.0011,39064.0,39058.0,0.135758]
[1646604192828,0.00020815,39061.0,39058.0,0.135758]
[1646604193841,0.0011,39064.0,39058.0,0.135758]
[1646604194032,0.00020815,39061.0,39058.0,0.435758]
[1646604194875,0.0011,39064.0,39058.0,0.435758]
[1646604195278,0.00020815,39061.0,39058.0,0.435758]
[1646604195477,0.00020815,39061.0,39058.0,0.37173]
[1646604196177,0.0011,39064.0,39058.0,0.37173]
[1646604196378,0.00020815,39061.0,39058.0,0.37173]
[1646604196878,0.00020815,39061.0,39058.0,0.435758]
[1646604197281,0.0011,39064.0,39058.0,0.59379787]
[1646604197482,0.00020815,39061.0,39059.0,0.1513]
[1646604197683,0.00020815,39061.0,39060.0,0.32594855]
[1646604197882,0.0011,39064.0,39061.0,2.5e-05]
[1646604198129,0.0011,39064.0,39062.0,0.0513]
[1646604198328,0.0011,39064.0,39063.0,0.56143547]
[1646604198529,0.0011,39064.0,39063.0,0.61273547]
[1646604198729,0.0011,39064.0,39063.0,0.71273547]
[1646604198930,0.0011,39064.0,39063.0,0.65994813]
[1646604199331,0.0011,39064.0,39063.0,0.4513]
[1646604199729,0.01443733,39066.0,39063.0,0.515305]
[1646604199930,0.01443733,39066.0,39064.0,0.51752449]
[1646604200132,0.0011,39068.0,39066.0,1.1]
[1646604200334,0.0011,39068.0,39067.0,0.4513]
[1646604201430,0.00130924,39069.0,39067.0,0.4513]
[1646604201637,0.00130924,39069.0,39068.0,0.42799565]
[1646604201879,0.00130924,39069.0,39068.0,0.57929565]
[1646604202077,0.0011,39076.0,39069.0,0.0002]
[1646604202078,0.01470588,39074.0,39069.0,0.0002]
[1646604202282,0.01470588,39074.0,39070.0,0.115294]
[1646604202478,0.01470588,39074.0,39071.0,0.3]
[1646604202680,0.01470588,39074.0,39072.0,0.0513]
[1646604202883,0.01470588,39074.0,39073.0,0.3]
[1646604203079,0.01470588,39074.0,39073.0,0.51623685]
[1646604203284,0.01470588,39074.0,39073.0,0.61623685]
[1646604203482,0.01470588,39074.0,39073.0,0.68022585]
[1646604203679,0.01470588,39074.0,39073.0,1.18022585]
[1646604205085,0.00470588,39074.0,39073.0,1.18022585]
[1646604206335,0.00470588,39074.0,39073.0,0.88022585]
[1646604207633,0.01736465,39074.0,39073.0,0.88022585]
[1646604207833,0.01736465,39074.0,39073.0,0.32069139]
[1646604208535,0.01736465,39074.0,39073.0,0.62069139]
[1646604210978,0.00021793,39075.0,39074.0,1.1]
[1646604211178,0.00021793,39075.0,39074.0,1.56736167]
[1646604211681,0.0011,39076.0,39074.0,1.56736167]
[1646604211982,0.00131452,39076.0,39075.0,0.3]
[1646604212177,0.00131452,39076.0,39075.0,0.4513]
[1646604213129,0.0011,39076.0,39075.0,0.4513]
[1646604213335,0.0011,39076.0,39075.0,0.45675602]
[1646604213530,0.0011,39079.0,39076.0,1.1]
[1646604213731,0.0011,39079.0,39078.0,0.00545602]
[1646604213938,0.469,39093.0,39080.0,1.1]
[1646604214130,0.2003,39093.0,39081.0,0.479248]
[1646604214330,0.0011,39093.0,39081.0,0.579248]
[1646604214534,0.0022,39092.0,39082.0,0.063974]
[1646604214728,0.0022,39092.0,39083.0,0.0513]
[1646604214929,0.0022,39092.0,39084.0,0.16097629]
[1646604215128,0.0022,39092.0,39085.0,0.0513]
[1646604215528,0.0022,39092.0,39085.0,0.3513]
[1646604215731,0.00229378,39087.0,39085.0,0.4513]
[1646604215934,0.0022,39092.0,39086.0,1.1]
[1646604216234,0.0022,39092.0,39088.0,0.01310318]
[1646604216430,0.0011,39094.0,39089.0,1.1513]
[1646604216631,0.0011,39094.0,39092.0,0.01613539]
[1646604216882,0.0011,39094.0,39093.0,0.0513]
[1646604217087,0.0011,39094.0,39093.0,0.3513]
[1646604217281,0.0011,39094.0,39093.0,0.4513]
[1646604217481,0.0011,39094.0,39093.0,0.45675602]
[1646604217682,0.0011,39094.0,39093.0,0.15675602]
[1646604218181,0.0011,39094.0,39093.0,0.05675602]
[1646604218783,0.0011,39094.0,39093.0,0.35675602]